{"text_format":"3","workbook":"xlsx","n_sheets":1,"sheets":["Náklady na prestavbu kúpeľne"],"not_rendered":{"defined_names":3},"read":"whole","date_system":"1900"}

{"sheet":"Náklady na prestavbu kúpeľne","index":0,"n_rows":23,"n_cols":10,"rows_kept":23,"merged":[[1,1,2,3],[2,4,2,6],[2,7,2,9],[21,1,21,3],[21,4,21,6],[21,7,21,9],[22,1,22,3],[22,4,22,6],[22,7,22,9]]}
[null,"HÁROK S NÁKLADMI NA PRESTAVBU KÚPEĽNE"]
[null,"POZNÁMKA: V stĺpcoch Rozdiel v tabuľke sa zobrazuje, či skutočné náklady prekročili odhadované náklady. Červené čísla označujú prekročenie (záporná hodnota) a čierne čísla označujú nižšie skutočné náklady oproti odhadovaným (kladná hodnota). "]
[{"$nulls":4},"Jednotkové náklady (EUR)",null,null,"Celkové náklady (EUR)"]
[null,"Typ položky","Položka","Množstvo","Odhadované","Skutočné","Rozdiel","Odhadované ","Skutočné ","Rozdiel "]
[null,"Vaňa/sprcha","Vaňa, liatinová, štandard",1,{"v":250,"d":"250.00 EUR"},{"$f":"RANDBETWEEN(E5+2,E5+20)","v":{"v":262,"d":"262.00 EUR"}},{"$f":"IFERROR(Náklady[[#This Row],[Odhadované]]-Náklady[[#This Row],[Skutočné]], \"\")","v":{"v":-12,"d":"-12.00 EUR"}},{"$f":"IFERROR(Náklady[[#This Row],[Množstvo]]*Náklady[[#This Row],[Odhadované]], \"\")","v":{"v":250,"d":"250.00 EUR"}},{"$f":"IFERROR(Náklady[[#This Row],[Množstvo]]*Náklady[[#This Row],[Skutočné]], \"\")","v":{"v":262,"d":"262.00 EUR"}},{"$f":"IFERROR(Náklady[[#This Row],[Odhadované ]]-Náklady[[#This Row],[Skutočné ]], \"\")","v":{"v":-12,"d":"-12.00 EUR"}}]
[null,"Vaňa/sprcha","Sprchové dvere, pántové, štandard",1,{"v":200,"d":"200.00 EUR"},{"v":220,"d":"220.00 EUR"},{"$f":"IFERROR(Náklady[[#This Row],[Odhadované]]-Náklady[[#This Row],[Skutočné]], \"\")","v":{"v":-20,"d":"-20.00 EUR"}},{"$f":"IFERROR(Náklady[[#This Row],[Množstvo]]*Náklady[[#This Row],[Odhadované]], \"\")","v":{"v":200,"d":"200.00 EUR"}},{"$f":"IFERROR(Náklady[[#This Row],[Množstvo]]*Náklady[[#This Row],[Skutočné]], \"\")","v":{"v":220,"d":"220.00 EUR"}},{"$f":"IFERROR(Náklady[[#This Row],[Odhadované ]]-Náklady[[#This Row],[Skutočné ]], \"\")","v":{"v":-20,"d":"-20.00 EUR"}}]
[null,"Vaňa/sprcha","Sprchová hlavica, štandard",1,{"v":50,"d":"50.00 EUR"},{"v":59,"d":"59.00 EUR"},{"$f":"IFERROR(Náklady[[#This Row],[Odhadované]]-Náklady[[#This Row],[Skutočné]], \"\")","v":{"v":-9,"d":"-9.00 EUR"}},{"$f":"IFERROR(Náklady[[#This Row],[Množstvo]]*Náklady[[#This Row],[Odhadované]], \"\")","v":{"v":50,"d":"50.00 EUR"}},{"$f":"IFERROR(Náklady[[#This Row],[Množstvo]]*Náklady[[#This Row],[Skutočné]], \"\")","v":{"v":59,"d":"59.00 EUR"}},{"$f":"IFERROR(Náklady[[#This Row],[Odhadované ]]-Náklady[[#This Row],[Skutočné ]], \"\")","v":{"v":-9,"d":"-9.00 EUR"}}]
[null,"Vaňa/sprcha","Vaňová zástena, štandard",1,{"v":200,"d":"200.00 EUR"},{"v":209,"d":"209.00 EUR"},{"$f":"IFERROR(Náklady[[#This Row],[Odhadované]]-Náklady[[#This Row],[Skutočné]], \"\")","v":{"v":-9,"d":"-9.00 EUR"}},{"$f":"IFERROR(Náklady[[#This Row],[Množstvo]]*Náklady[[#This Row],[Odhadované]], \"\")","v":{"v":200,"d":"200.00 EUR"}},{"$f":"IFERROR(Náklady[[#This Row],[Množstvo]]*Náklady[[#This Row],[Skutočné]], \"\")","v":{"v":209,"d":"209.00 EUR"}},{"$f":"IFERROR(Náklady[[#This Row],[Odhadované ]]-Náklady[[#This Row],[Skutočné ]], \"\")","v":{"v":-9,"d":"-9.00 EUR"}}]
[null,"Skrinky","Lieková skrinka, deluxe",1,{"v":200,"d":"200.00 EUR"},{"v":215,"d":"215.00 EUR"},{"$f":"IFERROR(Náklady[[#This Row],[Odhadované]]-Náklady[[#This Row],[Skutočné]], \"\")","v":{"v":-15,"d":"-15.00 EUR"}},{"$f":"IFERROR(Náklady[[#This Row],[Množstvo]]*Náklady[[#This Row],[Odhadované]], \"\")","v":{"v":200,"d":"200.00 EUR"}},{"$f":"IFERROR(Náklady[[#This Row],[Množstvo]]*Náklady[[#This Row],[Skutočné]], \"\")","v":{"v":215,"d":"215.00 EUR"}},{"$f":"IFERROR(Náklady[[#This Row],[Odhadované ]]-Náklady[[#This Row],[Skutočné ]], \"\")","v":{"v":-15,"d":"-15.00 EUR"}}]
[null,"Skrinky","Modulárna toaletná skrinka, štandard",2,{"v":100,"d":"100.00 EUR"},{"v":112,"d":"112.00 EUR"},{"$f":"IFERROR(Náklady[[#This Row],[Odhadované]]-Náklady[[#This Row],[Skutočné]], \"\")","v":{"v":-12,"d":"-12.00 EUR"}},{"$f":"IFERROR(Náklady[[#This Row],[Množstvo]]*Náklady[[#This Row],[Odhadované]], \"\")","v":{"v":200,"d":"200.00 EUR"}},{"$f":"IFERROR(Náklady[[#This Row],[Množstvo]]*Náklady[[#This Row],[Skutočné]], \"\")","v":{"v":224,"d":"224.00 EUR"}},{"$f":"IFERROR(Náklady[[#This Row],[Odhadované ]]-Náklady[[#This Row],[Skutočné ]], \"\")","v":{"v":-24,"d":"-24.00 EUR"}}]
[null,"Pultové dosky","Keramické dlaždice, deluxe (množstvo v metroch)",5,{"v":22.5,"d":"22.50 EUR"},{"v":29,"d":"29.00 EUR"},{"$f":"IFERROR(Náklady[[#This Row],[Odhadované]]-Náklady[[#This Row],[Skutočné]], \"\")","v":{"v":-6.5,"d":"-6.50 EUR"}},{"$f":"IFERROR(Náklady[[#This Row],[Množstvo]]*Náklady[[#This Row],[Odhadované]], \"\")","v":{"v":112.5,"d":"112.50 EUR"}},{"$f":"IFERROR(Náklady[[#This Row],[Množstvo]]*Náklady[[#This Row],[Skutočné]], \"\")","v":{"v":145,"d":"145.00 EUR"}},{"$f":"IFERROR(Náklady[[#This Row],[Odhadované ]]-Náklady[[#This Row],[Skutočné ]], \"\")","v":{"v":-32.5,"d":"-32.50 EUR"}}]
[null,"Batérie","Batéria, vaňová, štandard",1,{"v":90,"d":"90.00 EUR"},{"v":108,"d":"108.00 EUR"},{"$f":"IFERROR(Náklady[[#This Row],[Odhadované]]-Náklady[[#This Row],[Skutočné]], \"\")","v":{"v":-18,"d":"-18.00 EUR"}},{"$f":"IFERROR(Náklady[[#This Row],[Množstvo]]*Náklady[[#This Row],[Odhadované]], \"\")","v":{"v":90,"d":"90.00 EUR"}},{"$f":"IFERROR(Náklady[[#This Row],[Množstvo]]*Náklady[[#This Row],[Skutočné]], \"\")","v":{"v":108,"d":"108.00 EUR"}},{"$f":"IFERROR(Náklady[[#This Row],[Odhadované ]]-Náklady[[#This Row],[Skutočné ]], \"\")","v":{"v":-18,"d":"-18.00 EUR"}}]
[null,"Batérie","Batéria, sprchová, jedna páka, štandard",1,{"v":115,"d":"115.00 EUR"},{"v":135,"d":"135.00 EUR"},{"$f":"IFERROR(Náklady[[#This Row],[Odhadované]]-Náklady[[#This Row],[Skutočné]], \"\")","v":{"v":-20,"d":"-20.00 EUR"}},{"$f":"IFERROR(Náklady[[#This Row],[Množstvo]]*Náklady[[#This Row],[Odhadované]], \"\")","v":{"v":115,"d":"115.00 EUR"}},{"$f":"IFERROR(Náklady[[#This Row],[Množstvo]]*Náklady[[#This Row],[Skutočné]], \"\")","v":{"v":135,"d":"135.00 EUR"}},{"$f":"IFERROR(Náklady[[#This Row],[Odhadované ]]-Náklady[[#This Row],[Skutočné ]], \"\")","v":{"v":-20,"d":"-20.00 EUR"}}]
[null,"Batérie","Batéria, umývadlová, štandard",1,{"v":95,"d":"95.00 EUR"},{"v":114,"d":"114.00 EUR"},{"$f":"IFERROR(Náklady[[#This Row],[Odhadované]]-Náklady[[#This Row],[Skutočné]], \"\")","v":{"v":-19,"d":"-19.00 EUR"}},{"$f":"IFERROR(Náklady[[#This Row],[Množstvo]]*Náklady[[#This Row],[Odhadované]], \"\")","v":{"v":95,"d":"95.00 EUR"}},{"$f":"IFERROR(Náklady[[#This Row],[Množstvo]]*Náklady[[#This Row],[Skutočné]], \"\")","v":{"v":114,"d":"114.00 EUR"}},{"$f":"IFERROR(Náklady[[#This Row],[Odhadované ]]-Náklady[[#This Row],[Skutočné ]], \"\")","v":{"v":-19,"d":"-19.00 EUR"}}]
[null,"Podlaha","Keramické dlaždice, štandard (množstvo v metroch štvorcových)",35,{"v":12,"d":"12.00 EUR"},{"v":26,"d":"26.00 EUR"},{"$f":"IFERROR(Náklady[[#This Row],[Odhadované]]-Náklady[[#This Row],[Skutočné]], \"\")","v":{"v":-14,"d":"-14.00 EUR"}},{"$f":"IFERROR(Náklady[[#This Row],[Množstvo]]*Náklady[[#This Row],[Odhadované]], \"\")","v":{"v":420,"d":"420.00 EUR"}},{"$f":"IFERROR(Náklady[[#This Row],[Množstvo]]*Náklady[[#This Row],[Skutočné]], \"\")","v":{"v":910,"d":"910.00 EUR"}},{"$f":"IFERROR(Náklady[[#This Row],[Odhadované ]]-Náklady[[#This Row],[Skutočné ]], \"\")","v":{"v":-490,"d":"-490.00 EUR"}}]
[null,"Kovové vybavenie","Držiak na uteráky, štandard",2,{"v":15,"d":"15.00 EUR"},{"v":32,"d":"32.00 EUR"},{"$f":"IFERROR(Náklady[[#This Row],[Odhadované]]-Náklady[[#This Row],[Skutočné]], \"\")","v":{"v":-17,"d":"-17.00 EUR"}},{"$f":"IFERROR(Náklady[[#This Row],[Množstvo]]*Náklady[[#This Row],[Odhadované]], \"\")","v":{"v":30,"d":"30.00 EUR"}},{"$f":"IFERROR(Náklady[[#This Row],[Množstvo]]*Náklady[[#This Row],[Skutočné]], \"\")","v":{"v":64,"d":"64.00 EUR"}},{"$f":"IFERROR(Náklady[[#This Row],[Odhadované ]]-Náklady[[#This Row],[Skutočné ]], \"\")","v":{"v":-34,"d":"-34.00 EUR"}}]
[null,"Kovové vybavenie","Držiak na toaletný papier",1,{"v":10,"d":"10.00 EUR"},{"v":26,"d":"26.00 EUR"},{"$f":"IFERROR(Náklady[[#This Row],[Odhadované]]-Náklady[[#This Row],[Skutočné]], \"\")","v":{"v":-16,"d":"-16.00 EUR"}},{"$f":"IFERROR(Náklady[[#This Row],[Množstvo]]*Náklady[[#This Row],[Odhadované]], \"\")","v":{"v":10,"d":"10.00 EUR"}},{"$f":"IFERROR(Náklady[[#This Row],[Množstvo]]*Náklady[[#This Row],[Skutočné]], \"\")","v":{"v":26,"d":"26.00 EUR"}},{"$f":"IFERROR(Náklady[[#This Row],[Odhadované ]]-Náklady[[#This Row],[Skutočné ]], \"\")","v":{"v":-16,"d":"-16.00 EUR"}}]
[null,"Osvetlenie","Vstavané osvetlenie, štandard",4,{"v":25,"d":"25.00 EUR"},{"v":41,"d":"41.00 EUR"},{"$f":"IFERROR(Náklady[[#This Row],[Odhadované]]-Náklady[[#This Row],[Skutočné]], \"\")","v":{"v":-16,"d":"-16.00 EUR"}},{"$f":"IFERROR(Náklady[[#This Row],[Množstvo]]*Náklady[[#This Row],[Odhadované]], \"\")","v":{"v":100,"d":"100.00 EUR"}},{"$f":"IFERROR(Náklady[[#This Row],[Množstvo]]*Náklady[[#This Row],[Skutočné]], \"\")","v":{"v":164,"d":"164.00 EUR"}},{"$f":"IFERROR(Náklady[[#This Row],[Odhadované ]]-Náklady[[#This Row],[Skutočné ]], \"\")","v":{"v":-64,"d":"-64.00 EUR"}}]
[null,"Umývadlá","Umývadlo, štandard",2,{"v":60,"d":"60.00 EUR"},{"v":64,"d":"64.00 EUR"},{"$f":"IFERROR(Náklady[[#This Row],[Odhadované]]-Náklady[[#This Row],[Skutočné]], \"\")","v":{"v":-4,"d":"-4.00 EUR"}},{"$f":"IFERROR(Náklady[[#This Row],[Množstvo]]*Náklady[[#This Row],[Odhadované]], \"\")","v":{"v":120,"d":"120.00 EUR"}},{"$f":"IFERROR(Náklady[[#This Row],[Množstvo]]*Náklady[[#This Row],[Skutočné]], \"\")","v":{"v":128,"d":"128.00 EUR"}},{"$f":"IFERROR(Náklady[[#This Row],[Odhadované ]]-Náklady[[#This Row],[Skutočné ]], \"\")","v":{"v":-8,"d":"-8.00 EUR"}}]
[null,"Iné",null,1,{"v":20,"d":"20.00 EUR"},{"v":25,"d":"25.00 EUR"},{"$f":"IFERROR(Náklady[[#This Row],[Odhadované]]-Náklady[[#This Row],[Skutočné]], \"\")","v":{"v":-5,"d":"-5.00 EUR"}},{"$f":"IFERROR(Náklady[[#This Row],[Množstvo]]*Náklady[[#This Row],[Odhadované]], \"\")","v":{"v":20,"d":"20.00 EUR"}},{"$f":"IFERROR(Náklady[[#This Row],[Množstvo]]*Náklady[[#This Row],[Skutočné]], \"\")","v":{"v":25,"d":"25.00 EUR"}},{"$f":"IFERROR(Náklady[[#This Row],[Odhadované ]]-Náklady[[#This Row],[Skutočné ]], \"\")","v":{"v":-5,"d":"-5.00 EUR"}}]
[null,"Medzisúčet",null,null,{"$f":"SUBTOTAL(109,Náklady[Odhadované])","v":{"v":1464.5,"d":"1,464.50 EUR"}},{"$f":"SUBTOTAL(109,Náklady[Skutočné])","v":{"v":1677,"d":"1,677.00 EUR"}},{"$f":"SUBTOTAL(109,Náklady[Rozdiel])","v":{"v":-212.5,"d":"-212.50 EUR"}},{"$f":"SUBTOTAL(109,Náklady[[Odhadované ]])","v":{"v":2212.5,"d":"2,212.50 EUR"}},{"$f":"SUBTOTAL(109,Náklady[[Skutočné ]])","v":{"v":3008,"d":"3,008.00 EUR"}},{"$f":"SUBTOTAL(109,Náklady[[Rozdiel ]])","v":{"v":-795.5,"d":"-795.50 EUR"}}]
[null,"Neočakávané náklady – (plus 30 % z odhadovaných)",null,null,{"$f":"IFERROR(Náklady[[#Totals],[Odhadované]]*0.3, \"\")","v":{"v":439.34999999999997,"d":"439.35 EUR"}},null,null,{"$f":"IFERROR(Náklady[[#Totals],[Odhadované ]]*0.3, \"\")","v":{"v":663.75,"d":"663.75 EUR"}}]
[null,"Celkové náklady",null,null,{"$f":"IFERROR(SUM(E21:E21), \"\")","v":{"v":1464.5,"d":"1,464.50 EUR"}},null,null,{"$f":"IFERROR(SUM(Náklady[[#Totals],[Odhadované ]],Prebytok), \"\")","v":{"v":2876.25,"d":"2,876.25 EUR"}}]